[Event "Titled Tuesday Blitz October 26 2021"]
[White "Klabis, Rokas"]
[Black "Yeletsky, Ivan"]
[WhiteFideId "12805246"]
[BlackFideId "24180327"]
[WhiteElo "2255"]
[BlackElo "2352"]
[Result "0-1"]
[Round "01"]
[TimeControl "180+1"]
[Date "2021.10.26"]
[WhiteClock "0:00:27"]
[BlackClock "0:01:11"]

1. e4 {[%clk 0:02:58]}  Nf6 {[%clk 0:02:57]} 2. Nc3 {[%clk 0:02:56]}  d5 {[%clk 0:02:56]} 3. exd5 {[%clk 0:02:57]}  Nxd5 {[%clk 0:02:56]} 4. Bc4 {[%clk 0:02:57]}  c6 {[%clk 0:02:56]} 5. Nge2 {[%clk 0:02:57]}  Bg4 {[%clk 0:02:56]} 6. h3 {[%clk 0:02:55]}  Bh5 {[%clk 0:02:54]} 7. O-O {[%clk 0:02:56]}  e6 {[%clk 0:02:54]} 8. d4 {[%clk 0:02:55]}  Be7 {[%clk 0:02:51]} 9. Ne4 {[%clk 0:02:54]}  O-O {[%clk 0:02:50]} 10. c3 {[%clk 0:02:49]}  Nd7 {[%clk 0:02:50]} 11. Bd3 {[%clk 0:02:47]}  Qc7 {[%clk 0:02:43]} 12. Qc2 {[%clk 0:02:47]}  Bg6 {[%clk 0:02:43]} 13. b4 {[%clk 0:02:42]}  a5 {[%clk 0:02:39]} 14. bxa5 {[%clk 0:02:32]}  Rxa5 {[%clk 0:02:30]} 15. Bd2 {[%clk 0:02:28]}  Rfa8 {[%clk 0:02:13]} 16. Rfb1 {[%clk 0:01:57]}  b5 {[%clk 0:02:01]} 17. Nc1 {[%clk 0:01:47]}  Ra4 {[%clk 0:01:43]} 18. Nb3 {[%clk 0:01:44]}  N5b6 {[%clk 0:01:34]} 19. g3 {[%clk 0:01:41]}  Nc4 {[%clk 0:01:32]} 20. Bf4 {[%clk 0:01:35]}  Qa7 {[%clk 0:01:31]} 21. Bxc4 {[%clk 0:01:07]}  Rxc4 {[%clk 0:01:31]} 22. Re1 {[%clk 0:01:01]}  Nb6 {[%clk 0:01:20]} 23. Qd2 {[%clk 0:00:57]}  Nd5 {[%clk 0:01:20]} 24. Rac1 {[%clk 0:00:31]}  Ra4 {[%clk 0:01:15]} 25. Ra1 {[%clk 0:00:27]}  Rxa2 {[%clk 0:01:15]} 26. Rxa2 {[%clk 0:00:28]}  Qxa2 {[%clk 0:01:15]} 27. Ra1 {[%clk 0:00:28]}  Qxa1+ {[%clk 0:01:15]} 28. Nxa1 {[%clk 0:00:28]}  Rxa1+ {[%clk 0:01:16]} 29. Kh2 {[%clk 0:00:27]}  Bxe4 {[%clk 0:01:16]} 30. g4 {[%clk 0:00:27]}  Rh1+ {[%clk 0:01:11]} 31. Kg3 {[%clk 0:00:27]}  Rg1+ {[%clk 0:01:11]} 0-1


[Site "https://www.chess.com"]

[Event "Titled Tuesday Blitz October 26 2021"]
[White "Lazavik, Denis"]
[Black "Pham, Le Thao Nguyen"]
[WhiteFideId "13515110"]
[BlackFideId "12401226"]
[WhiteElo "2436"]
[BlackElo "2286"]
[Result "1/2-1/2"]
[Round "01"]
[TimeControl "180+1"]
[Date "2021.10.26"]
[WhiteClock "0:00:30"]
[BlackClock "0:00:19"]

1. d4 {[%clk 0:03:00]}  d5 {[%clk 0:02:59]} 2. c4 {[%clk 0:02:59]}  c6 {[%clk 0:03:00]} 3. Nf3 {[%clk 0:02:59]}  Nf6 {[%clk 0:02:59]} 4. Nc3 {[%clk 0:02:59]}  dxc4 {[%clk 0:03:00]} 5. a4 {[%clk 0:02:58]}  Bf5 {[%clk 0:03:00]} 6. Ne5 {[%clk 0:02:57]}  Na6 {[%clk 0:03:00]} 7. e3 {[%clk 0:02:53]}  Nb4 {[%clk 0:02:56]} 8. Bxc4 {[%clk 0:02:53]}  e6 {[%clk 0:02:57]} 9. O-O {[%clk 0:02:52]}  Be7 {[%clk 0:02:57]} 10. Qe2 {[%clk 0:02:50]}  Bg6 {[%clk 0:02:49]} 11. Rd1 {[%clk 0:02:45]}  Nbd5 {[%clk 0:02:46]} 12. f3 {[%clk 0:02:29]}  Nd7 {[%clk 0:02:34]} 13. Nd3 {[%clk 0:02:21]}  N7b6 {[%clk 0:02:00]} 14. Bb3 {[%clk 0:02:20]}  a5 {[%clk 0:01:58]} 15. e4 {[%clk 0:02:18]}  Nb4 {[%clk 0:01:57]} 16. Nc5 {[%clk 0:02:09]}  Qc7 {[%clk 0:01:49]} 17. Be3 {[%clk 0:02:06]}  Nd7 {[%clk 0:01:44]} 18. Nxd7 {[%clk 0:01:56]}  Qxd7 {[%clk 0:01:43]} 19. d5 {[%clk 0:01:57]}  exd5 {[%clk 0:01:42]} 20. exd5 {[%clk 0:01:56]}  O-O {[%clk 0:01:40]} 21. dxc6 {[%clk 0:01:44]}  Qxc6 {[%clk 0:01:38]} 22. Rac1 {[%clk 0:01:43]}  Bc5 {[%clk 0:01:19]} 23. Nd5 {[%clk 0:01:34]}  Bxe3+ {[%clk 0:01:19]} 24. Qxe3 {[%clk 0:01:34]}  Nxd5 {[%clk 0:01:19]} 25. Rxd5 {[%clk 0:01:16]}  Qf6 {[%clk 0:01:17]} 26. Qd4 {[%clk 0:01:07]}  Qxd4+ {[%clk 0:01:04]} 27. Rxd4 {[%clk 0:01:08]}  Rad8 {[%clk 0:00:53]} 28. Rxd8 {[%clk 0:01:07]}  Rxd8 {[%clk 0:00:54]} 29. Rc5 {[%clk 0:01:07]}  b6 {[%clk 0:00:52]} 30. Rc6 {[%clk 0:01:05]}  Rb8 {[%clk 0:00:51]} 31. Kf2 {[%clk 0:01:02]}  Kf8 {[%clk 0:00:49]} 32. Rc7 {[%clk 0:01:00]}  b5 {[%clk 0:00:46]} 33. axb5 {[%clk 0:00:48]}  Rxb5 {[%clk 0:00:47]} 34. Rc3 {[%clk 0:00:48]}  Bf5 {[%clk 0:00:37]} 35. Ke3 {[%clk 0:00:45]}  h5 {[%clk 0:00:29]} 36. h4 {[%clk 0:00:43]}  g6 {[%clk 0:00:25]} 37. g3 {[%clk 0:00:43]}  Rb4 {[%clk 0:00:23]} 38. Bd5 {[%clk 0:00:33]}  Rxb2 {[%clk 0:00:20]} 39. Rc7 {[%clk 0:00:34]}  Be6 {[%clk 0:00:18]} 40. Bxe6 {[%clk 0:00:34]}  fxe6 {[%clk 0:00:19]} 41. Ra7 {[%clk 0:00:35]}  Rb5 {[%clk 0:00:18]} 42. Ke4 {[%clk 0:00:34]}  Rf5 {[%clk 0:00:18]} 43. g4 {[%clk 0:00:30]}  hxg4 {[%clk 0:00:18]} 44. fxg4 {[%clk 0:00:31]}  Rb5 {[%clk 0:00:18]} 45. Kf4 {[%clk 0:00:30]}  Rc5 {[%clk 0:00:18]} 46. Ke4 {[%clk 0:00:30]}  Rb5 {[%clk 0:00:19]} 47. Kf4 {[%clk 0:00:30]}  Rc5 {[%clk 0:00:19]} 48. Ke4 {[%clk 0:00:30]}  Rb5 {[%clk 0:00:19]} 1/2-1/2


[Site "https://www.chess.com"]

[Event "Titled Tuesday Blitz October 26 2021"]
[White "Mostbauer, Maximilian"]
[Black "Perez Ponsa, Federico"]
[WhiteFideId "1626680"]
[BlackFideId "117927"]
[WhiteElo "2188"]
[BlackElo "2672"]
[Result "0-1"]
[Round "01"]
[TimeControl "180+1"]
[Date "2021.10.26"]
[WhiteClock "0:00:20"]
[BlackClock "0:00:39"]

1. d4 {[%clk 0:02:57]}  Nf6 {[%clk 0:02:25]} 2. Nf3 {[%clk 0:02:56]}  d5 {[%clk 0:02:25]} 3. g3 {[%clk 0:02:57]}  c6 {[%clk 0:02:24]} 4. Bg2 {[%clk 0:02:57]}  Bf5 {[%clk 0:02:25]} 5. O-O {[%clk 0:02:58]}  e6 {[%clk 0:02:26]} 6. b3 {[%clk 0:02:59]}  h6 {[%clk 0:02:26]} 7. Bb2 {[%clk 0:02:59]}  Be7 {[%clk 0:02:26]} 8. Nbd2 {[%clk 0:03:00]}  O-O {[%clk 0:02:27]} 9. c4 {[%clk 0:03:01]}  Nbd7 {[%clk 0:02:27]} 10. Ne5 {[%clk 0:03:01]}  a5 {[%clk 0:02:25]} 11. a3 {[%clk 0:02:59]}  Qb6 {[%clk 0:02:21]} 12. Nxd7 {[%clk 0:02:57]}  Nxd7 {[%clk 0:02:21]} 13. e4 {[%clk 0:02:58]}  dxe4 {[%clk 0:02:20]} 14. Nxe4 {[%clk 0:02:58]}  Rfd8 {[%clk 0:02:17]} 15. d5 {[%clk 0:01:39]}  cxd5 {[%clk 0:01:54]} 16. cxd5 {[%clk 0:01:40]}  Bxe4 {[%clk 0:01:50]} 17. Bxe4 {[%clk 0:01:38]}  Nf6 {[%clk 0:01:51]} 18. Bxf6 {[%clk 0:01:35]}  Bxf6 {[%clk 0:01:52]} 19. Rb1 {[%clk 0:01:35]}  exd5 {[%clk 0:01:52]} 20. Bc2 {[%clk 0:01:29]}  Rac8 {[%clk 0:01:50]} 21. Kg2 {[%clk 0:01:23]}  g6 {[%clk 0:01:49]} 22. h4 {[%clk 0:01:22]}  h5 {[%clk 0:01:49]} 23. b4 {[%clk 0:01:02]}  Qc7 {[%clk 0:01:43]} 24. Bd3 {[%clk 0:00:55]}  b6 {[%clk 0:01:40]} 25. Qf3 {[%clk 0:00:55]}  Kg7 {[%clk 0:01:40]} 26. bxa5 {[%clk 0:00:54]}  bxa5 {[%clk 0:01:41]} 27. Rfd1 {[%clk 0:00:52]}  Qd6 {[%clk 0:01:41]} 28. a4 {[%clk 0:00:50]}  Rc3 {[%clk 0:01:41]} 29. Rb5 {[%clk 0:00:43]}  Rc5 {[%clk 0:01:38]} 30. Rxc5 {[%clk 0:00:33]}  Qxc5 {[%clk 0:01:39]} 31. Bb5 {[%clk 0:00:34]}  d4 {[%clk 0:01:37]} 32. Rd3 {[%clk 0:00:34]}  Rd5 {[%clk 0:01:35]} 33. Qe4 {[%clk 0:00:31]}  Qd6 {[%clk 0:01:30]} 34. Bc4 {[%clk 0:00:26]}  Rc5 {[%clk 0:01:29]} 35. Bb5 {[%clk 0:00:26]}  Rc7 {[%clk 0:01:26]} 36. Rf3 {[%clk 0:00:23]}  Re7 {[%clk 0:01:25]} 37. Qd3 {[%clk 0:00:23]}  Qe5 {[%clk 0:01:19]} 38. Qd2 {[%clk 0:00:23]}  Qc7 {[%clk 0:01:08]} 39. Rd3 {[%clk 0:00:22]}  Qb7+ {[%clk 0:01:07]} 40. Kh2 {[%clk 0:00:20]}  Qc7 {[%clk 0:01:00]} 41. Qd1 {[%clk 0:00:20]}  Re4 {[%clk 0:00:58]} 42. Kg2 {[%clk 0:00:20]}  Qe5 {[%clk 0:00:53]} 43. Qf3 {[%clk 0:00:20]}  Re1 {[%clk 0:00:50]} 44. Rd1 {[%clk 0:00:21]}  Re4 {[%clk 0:00:42]} 45. Rd3 {[%clk 0:00:21]}  Rg4 {[%clk 0:00:41]} 46. Rd1 {[%clk 0:00:20]}  Bxh4 {[%clk 0:00:40]} 47. Qxf7+ {[%clk 0:00:20]}  Kxf7 {[%clk 0:00:39]} 0-1


[Site "https://www.chess.com"]

[Event "Titled Tuesday Blitz October 26 2021"]
[White "Nakamura, Hikaru"]
[Black "Abdulov, Orkhan"]
[WhiteFideId "2016192"]
[BlackFideId "13402714"]
[WhiteElo "2884"]
[BlackElo "2250"]
[Result "1-0"]
[Round "01"]
[TimeControl "180+1"]
[Date "2021.10.26"]
[WhiteClock "0:01:31"]
[BlackClock "0:01:13"]

1. Nf3 {[%clk 0:03:00]}  g6 {[%clk 0:02:58]} 2. e4 {[%clk 0:03:00]}  Bg7 {[%clk 0:02:59]} 3. d4 {[%clk 0:03:01]}  c6 {[%clk 0:03:00]} 4. Bd3 {[%clk 0:02:59]}  d5 {[%clk 0:03:01]} 5. e5 {[%clk 0:02:59]}  Bg4 {[%clk 0:02:59]} 6. Nbd2 {[%clk 0:02:59]}  f6 {[%clk 0:02:58]} 7. h3 {[%clk 0:02:56]}  Bxf3 {[%clk 0:02:56]} 8. Nxf3 {[%clk 0:02:57]}  fxe5 {[%clk 0:02:55]} 9. Nxe5 {[%clk 0:02:47]}  Nf6 {[%clk 0:02:51]} 10. Qe2 {[%clk 0:02:46]}  Qb6 {[%clk 0:02:45]} 11. c3 {[%clk 0:02:46]}  Nbd7 {[%clk 0:02:42]} 12. Nf3 {[%clk 0:02:43]}  O-O-O {[%clk 0:02:42]} 13. Bf4 {[%clk 0:02:40]}  Rhf8 {[%clk 0:02:39]} 14. Bh2 {[%clk 0:02:38]}  Nh5 {[%clk 0:02:36]} 15. O-O {[%clk 0:02:34]}  Nf4 {[%clk 0:02:31]} 16. Bxf4 {[%clk 0:02:33]}  Rxf4 {[%clk 0:02:32]} 17. Qxe7 {[%clk 0:02:33]}  Bf8 {[%clk 0:02:31]} 18. Qe2 {[%clk 0:02:28]}  Bd6 {[%clk 0:02:30]} 19. Ng5 {[%clk 0:02:28]}  Nf8 {[%clk 0:02:24]} 20. g3 {[%clk 0:02:24]}  Rf6 {[%clk 0:02:24]} 21. Rae1 {[%clk 0:02:23]}  h6 {[%clk 0:02:24]} 22. Nf3 {[%clk 0:02:24]}  Qc7 {[%clk 0:02:20]} 23. Kg2 {[%clk 0:02:07]}  Ne6 {[%clk 0:02:15]} 24. Qxe6+ {[%clk 0:02:02]}  Rxe6 {[%clk 0:02:15]} 25. Rxe6 {[%clk 0:02:03]}  g5 {[%clk 0:01:58]} 26. Rxh6 {[%clk 0:02:01]}  Qa5 {[%clk 0:01:52]} 27. a3 {[%clk 0:01:56]}  Qa4 {[%clk 0:01:52]} 28. Nxg5 {[%clk 0:01:54]}  Bf8 {[%clk 0:01:46]} 29. Rh7 {[%clk 0:01:51]}  Qb3 {[%clk 0:01:46]} 30. Rb1 {[%clk 0:01:47]}  Re8 {[%clk 0:01:44]} 31. Rh8 {[%clk 0:01:45]}  Kd8 {[%clk 0:01:26]} 32. Bg6 {[%clk 0:01:40]}  Qa2 {[%clk 0:01:18]} 33. Bxe8 {[%clk 0:01:35]}  Qxb1 {[%clk 0:01:17]} 34. Rxf8 {[%clk 0:01:35]}  Ke7 {[%clk 0:01:18]} 35. Rg8 {[%clk 0:01:33]}  Qxb2 {[%clk 0:01:18]} 36. h4 {[%clk 0:01:31]}  Qxc3 {[%clk 0:01:17]} 37. h5 {[%clk 0:01:31]}  Qxd4 {[%clk 0:01:13]} 38. h6 {[%clk 0:01:31]} 1-0


[Site "https://www.chess.com"]

[Event "Titled Tuesday Blitz October 26 2021"]
[White "Sadhwani, Raunak"]
[Black "Kokoszczynski, Jan"]
[WhiteFideId "35093487"]
[BlackFideId "1174460"]
[WhiteElo "2517"]
[BlackElo "2128"]
[Result "1-0"]
[Round "01"]
[TimeControl "180+1"]
[Date "2021.10.26"]
[WhiteClock "0:00:27"]
[BlackClock "0:00:03"]

1. Nf3 {[%clk 0:03:00]}  f5 {[%clk 0:02:58]} 2. d3 {[%clk 0:02:55]}  Nc6 {[%clk 0:02:57]} 3. e4 {[%clk 0:02:55]}  e5 {[%clk 0:02:56]} 4. Nc3 {[%clk 0:02:53]}  Nf6 {[%clk 0:02:56]} 5. exf5 {[%clk 0:02:46]}  d5 {[%clk 0:02:49]} 6. d4 {[%clk 0:02:34]}  e4 {[%clk 0:02:35]} 7. Ne5 {[%clk 0:02:33]}  Bxf5 {[%clk 0:02:33]} 8. Bb5 {[%clk 0:02:34]}  Bd7 {[%clk 0:02:28]} 9. Nxd7 {[%clk 0:02:24]}  Qxd7 {[%clk 0:02:28]} 10. Bg5 {[%clk 0:02:24]}  Bb4 {[%clk 0:02:11]} 11. Bxf6 {[%clk 0:02:07]}  gxf6 {[%clk 0:02:10]} 12. O-O {[%clk 0:02:08]}  O-O-O {[%clk 0:02:05]} 13. Ne2 {[%clk 0:01:58]}  f5 {[%clk 0:01:59]} 14. c4 {[%clk 0:01:58]}  Be7 {[%clk 0:01:35]} 15. Rc1 {[%clk 0:01:50]}  a6 {[%clk 0:01:25]} 16. cxd5 {[%clk 0:01:50]}  axb5 {[%clk 0:01:18]} 17. dxc6 {[%clk 0:01:51]}  bxc6 {[%clk 0:01:19]} 18. a4 {[%clk 0:01:50]}  b4 {[%clk 0:00:55]} 19. a5 {[%clk 0:01:41]}  Kb7 {[%clk 0:00:54]} 20. a6+ {[%clk 0:01:41]}  Ka7 {[%clk 0:00:52]} 21. Qa4 {[%clk 0:01:41]}  c5 {[%clk 0:00:47]} 22. Qa5 {[%clk 0:01:37]}  Rb8 {[%clk 0:00:36]} 23. dxc5 {[%clk 0:01:26]}  Rhd8 {[%clk 0:00:32]} 24. c6 {[%clk 0:01:23]}  Qd6 {[%clk 0:00:29]} 25. Qxf5 {[%clk 0:01:21]}  Qd2 {[%clk 0:00:19]} 26. Qxe4 {[%clk 0:01:08]}  Bd6 {[%clk 0:00:19]} 27. Ng3 {[%clk 0:01:05]}  Re8 {[%clk 0:00:18]} 28. Qc4 {[%clk 0:00:57]}  Qxb2 {[%clk 0:00:17]} 29. Rcd1 {[%clk 0:00:53]}  Qe5 {[%clk 0:00:15]} 30. Rd5 {[%clk 0:00:47]}  Qf4 {[%clk 0:00:12]} 31. Qb3 {[%clk 0:00:44]}  Rb6 {[%clk 0:00:09]} 32. Rf5 {[%clk 0:00:37]}  Qd4 {[%clk 0:00:08]} 33. Qf7 {[%clk 0:00:37]}  Reb8 {[%clk 0:00:05]} 34. Rd5 {[%clk 0:00:30]}  Qf4 {[%clk 0:00:06]} 35. Nf5 {[%clk 0:00:29]}  Rxc6 {[%clk 0:00:05]} 36. Rxd6 {[%clk 0:00:28]}  Rxd6 {[%clk 0:00:03]} 37. Qxc7+ {[%clk 0:00:28]}  Kxa6 {[%clk 0:00:03]} 38. Nxd6 {[%clk 0:00:27]} 1-0


[Site "https://www.chess.com"]

[Event "Titled Tuesday Blitz October 26 2021"]
[White "Shtyka, Sergey"]
[Black "Ibarra Jerez, Jose Carlos"]
[WhiteFideId "4138465"]
[BlackFideId "2226332"]
[WhiteElo "2064"]
[BlackElo "2626"]
[Result "1/2-1/2"]
[Round "01"]
[TimeControl "180+1"]
[Date "2021.10.26"]
[WhiteClock "0:00:07"]
[BlackClock "0:00:08"]

1. e4 {[%clk 0:02:53]}  c5 {[%clk 0:02:57]} 2. Nf3 {[%clk 0:02:53]}  e6 {[%clk 0:02:57]} 3. d4 {[%clk 0:02:52]}  cxd4 {[%clk 0:02:57]} 4. Nxd4 {[%clk 0:02:49]}  Bc5 {[%clk 0:02:56]} 5. Nb3 {[%clk 0:02:47]}  Bb6 {[%clk 0:02:56]} 6. Be2 {[%clk 0:02:45]}  Ne7 {[%clk 0:02:55]} 7. O-O {[%clk 0:02:45]}  O-O {[%clk 0:02:55]} 8. Nc3 {[%clk 0:02:40]}  f5 {[%clk 0:02:52]} 9. exf5 {[%clk 0:02:40]}  Nxf5 {[%clk 0:02:50]} 10. Bf4 {[%clk 0:02:22]}  d5 {[%clk 0:02:47]} 11. Na4 {[%clk 0:02:14]}  Bc7 {[%clk 0:02:37]} 12. Bxc7 {[%clk 0:02:13]}  Qxc7 {[%clk 0:02:37]} 13. Nc3 {[%clk 0:01:51]}  Nc6 {[%clk 0:02:30]} 14. Nb5 {[%clk 0:01:48]}  Qb6 {[%clk 0:02:28]} 15. a4 {[%clk 0:01:41]}  a6 {[%clk 0:02:22]} 16. a5 {[%clk 0:01:36]}  Qd8 {[%clk 0:02:21]} 17. N5d4 {[%clk 0:01:36]}  Nfxd4 {[%clk 0:02:19]} 18. Nxd4 {[%clk 0:01:36]}  Nxa5 {[%clk 0:02:17]} 19. Bg4 {[%clk 0:01:30]}  Rf6 {[%clk 0:02:06]} 20. Qe1 {[%clk 0:01:19]}  e5 {[%clk 0:01:45]} 21. Bxc8 {[%clk 0:01:11]}  Rxc8 {[%clk 0:01:37]} 22. Qxe5 {[%clk 0:00:56]}  Nc4 {[%clk 0:01:30]} 23. Qh5 {[%clk 0:00:51]}  Qd6 {[%clk 0:01:09]} 24. h3 {[%clk 0:00:37]}  Rcf8 {[%clk 0:01:03]} 25. Rad1 {[%clk 0:00:30]}  Nxb2 {[%clk 0:01:01]} 26. Rb1 {[%clk 0:00:30]}  Nc4 {[%clk 0:00:56]} 27. Rxb7 {[%clk 0:00:28]}  Qe5 {[%clk 0:00:31]} 28. Qxe5 {[%clk 0:00:27]}  Nxe5 {[%clk 0:00:32]} 29. f3 {[%clk 0:00:24]}  R6f7 {[%clk 0:00:13]} 30. Rb6 {[%clk 0:00:22]}  Rf6 {[%clk 0:00:11]} 31. Rb7 {[%clk 0:00:22]}  h6 {[%clk 0:00:11]} 32. Re1 {[%clk 0:00:22]}  Ng6 {[%clk 0:00:11]} 33. Re6 {[%clk 0:00:19]}  Nf4 {[%clk 0:00:09]} 34. Ree7 {[%clk 0:00:17]}  Rg6 {[%clk 0:00:09]} 35. g4 {[%clk 0:00:15]}  Nxh3+ {[%clk 0:00:09]} 36. Kg2 {[%clk 0:00:14]}  Nf4+ {[%clk 0:00:07]} 37. Kg3 {[%clk 0:00:15]}  h5 {[%clk 0:00:08]} 38. Nf5 {[%clk 0:00:12]}  Rxf5 {[%clk 0:00:08]} 39. Re8+ {[%clk 0:00:10]}  Rf8 {[%clk 0:00:07]} 40. Rxf8+ {[%clk 0:00:10]}  Kxf8 {[%clk 0:00:07]} 41. Kxf4 {[%clk 0:00:11]}  hxg4 {[%clk 0:00:07]} 42. fxg4 {[%clk 0:00:12]}  Rc6 {[%clk 0:00:08]} 43. Ke5 {[%clk 0:00:11]}  Rxc2 {[%clk 0:00:07]} 44. Kxd5 {[%clk 0:00:11]}  Rg2 {[%clk 0:00:07]} 45. Ke6 {[%clk 0:00:11]}  Kg8 {[%clk 0:00:07]} 46. Kf5 {[%clk 0:00:11]}  Rf2+ {[%clk 0:00:08]} 47. Kg6 {[%clk 0:00:10]}  Rf6+ {[%clk 0:00:09]} 48. Kg5 {[%clk 0:00:10]}  Kh7 {[%clk 0:00:08]} 49. Ra7 {[%clk 0:00:10]}  Rb6 {[%clk 0:00:08]} 50. Kh5 {[%clk 0:00:10]}  Rh6+ {[%clk 0:00:07]} 51. Kg5 {[%clk 0:00:10]}  Rb6 {[%clk 0:00:05]} 52. Kh5 {[%clk 0:00:10]}  Kg8 {[%clk 0:00:06]} 53. Kg5 {[%clk 0:00:10]}  Kf8 {[%clk 0:00:06]} 54. Kf5 {[%clk 0:00:10]}  Rf6+ {[%clk 0:00:05]} 55. Kg5 {[%clk 0:00:10]}  Kg8 {[%clk 0:00:06]} 56. Kh5 {[%clk 0:00:10]}  Rb6 {[%clk 0:00:06]} 57. Kg5 {[%clk 0:00:10]}  Rh6 {[%clk 0:00:06]} 58. Kf5 {[%clk 0:00:09]}  Rc6 {[%clk 0:00:05]} 59. Kg5 {[%clk 0:00:09]}  Kf8 {[%clk 0:00:05]} 60. Kf5 {[%clk 0:00:10]}  g6+ {[%clk 0:00:06]} 61. Kg5 {[%clk 0:00:10]}  Ke8 {[%clk 0:00:06]} 62. Kh6 {[%clk 0:00:08]}  Kd8 {[%clk 0:00:07]} 63. g5 {[%clk 0:00:09]}  Kc8 {[%clk 0:00:07]} 64. Rg7 {[%clk 0:00:06]}  a5 {[%clk 0:00:07]} 65. Rxg6 {[%clk 0:00:05]}  Rxg6+ {[%clk 0:00:04]} 66. Kxg6 {[%clk 0:00:06]}  a4 {[%clk 0:00:04]} 67. Kh7 {[%clk 0:00:05]}  a3 {[%clk 0:00:05]} 68. g6 {[%clk 0:00:06]}  a2 {[%clk 0:00:06]} 69. g7 {[%clk 0:00:06]}  a1=Q {[%clk 0:00:07]} 70. g8=Q+ {[%clk 0:00:07]}  Kd7 {[%clk 0:00:08]} 71. Qg7+ {[%clk 0:00:07]}  Qxg7+ {[%clk 0:00:08]} 72. Kxg7 {[%clk 0:00:07]} 1/2-1/2


[Site "https://www.chess.com"]

[Event "Titled Tuesday Blitz October 26 2021"]
[White "Sorokin, Aleksey"]
[Black "Brunner, Nicolas"]
[WhiteFideId "24176460"]
[BlackFideId "620246"]
[WhiteElo "2476"]
[BlackElo "2372"]
[Result "1-0"]
[Round "01"]
[TimeControl "180+1"]
[Date "2021.10.26"]
[WhiteClock "0:01:37"]
[BlackClock "0:00:11"]

1. e4 {[%clk 0:02:59]}  e5 {[%clk 0:02:57]} 2. Nf3 {[%clk 0:02:54]}  Nc6 {[%clk 0:02:57]} 3. Bb5 {[%clk 0:02:54]}  a6 {[%clk 0:02:56]} 4. Ba4 {[%clk 0:02:53]}  Nf6 {[%clk 0:02:55]} 5. O-O {[%clk 0:02:53]}  Be7 {[%clk 0:02:56]} 6. Re1 {[%clk 0:02:52]}  b5 {[%clk 0:02:55]} 7. Bb3 {[%clk 0:02:52]}  d6 {[%clk 0:02:55]} 8. c3 {[%clk 0:02:52]}  O-O {[%clk 0:02:54]} 9. h3 {[%clk 0:02:52]}  Nb8 {[%clk 0:02:53]} 10. d4 {[%clk 0:02:51]}  Nbd7 {[%clk 0:02:52]} 11. Nbd2 {[%clk 0:02:51]}  Bb7 {[%clk 0:02:51]} 12. Bc2 {[%clk 0:02:50]}  Re8 {[%clk 0:02:50]} 13. Nf1 {[%clk 0:02:50]}  Bf8 {[%clk 0:02:49]} 14. Ng3 {[%clk 0:02:50]}  g6 {[%clk 0:02:47]} 15. a4 {[%clk 0:02:49]}  c5 {[%clk 0:02:46]} 16. b3 {[%clk 0:02:44]}  Bg7 {[%clk 0:02:30]} 17. d5 {[%clk 0:02:41]}  h6 {[%clk 0:02:15]} 18. Qe2 {[%clk 0:02:40]}  Qb6 {[%clk 0:02:11]} 19. Be3 {[%clk 0:02:37]}  Kh7 {[%clk 0:02:03]} 20. Bd3 {[%clk 0:02:35]}  bxa4 {[%clk 0:02:01]} 21. b4 {[%clk 0:02:35]}  Qc7 {[%clk 0:01:58]} 22. Rec1 {[%clk 0:02:30]}  Nb6 {[%clk 0:01:53]} 23. bxc5 {[%clk 0:02:27]}  dxc5 {[%clk 0:01:53]} 24. Nd2 {[%clk 0:02:24]}  Nfd7 {[%clk 0:01:41]} 25. c4 {[%clk 0:02:22]}  a5 {[%clk 0:01:35]} 26. Nb1 {[%clk 0:02:21]}  Ba6 {[%clk 0:01:33]} 27. Nc3 {[%clk 0:02:21]}  Reb8 {[%clk 0:01:28]} 28. Nxa4 {[%clk 0:02:19]}  Nxa4 {[%clk 0:01:28]} 29. Rxa4 {[%clk 0:02:20]}  Rb4 {[%clk 0:01:21]} 30. Ra2 {[%clk 0:02:19]}  Rab8 {[%clk 0:01:16]} 31. Bd2 {[%clk 0:02:15]}  Rb2 {[%clk 0:01:13]} 32. Rxb2 {[%clk 0:02:15]}  Rxb2 {[%clk 0:01:13]} 33. Bxa5 {[%clk 0:02:15]}  Qb7 {[%clk 0:00:57]} 34. Rc2 {[%clk 0:02:10]}  Rb1+ {[%clk 0:00:55]} 35. Kh2 {[%clk 0:02:10]}  Nf6 {[%clk 0:00:54]} 36. Ra2 {[%clk 0:02:08]}  Ne8 {[%clk 0:00:53]} 37. Bxb1 {[%clk 0:02:06]}  Qxb1 {[%clk 0:00:53]} 38. Bc3 {[%clk 0:02:01]}  Qc1 {[%clk 0:00:47]} 39. Rxa6 {[%clk 0:01:58]}  Qxc3 {[%clk 0:00:46]} 40. Rc6 {[%clk 0:01:55]}  Qb4 {[%clk 0:00:44]} 41. Qd3 {[%clk 0:01:51]}  Nf6 {[%clk 0:00:42]} 42. d6 {[%clk 0:01:50]}  Nd7 {[%clk 0:00:38]} 43. Rc7 {[%clk 0:01:50]}  Qa4 {[%clk 0:00:36]} 44. Qd5 {[%clk 0:01:49]}  Kg8 {[%clk 0:00:36]} 45. Qc6 {[%clk 0:01:46]}  Qxc6 {[%clk 0:00:34]} 46. Rxc6 {[%clk 0:01:47]}  Bf6 {[%clk 0:00:32]} 47. Rc7 {[%clk 0:01:47]}  Nf8 {[%clk 0:00:32]} 48. d7 {[%clk 0:01:46]}  Ne6 {[%clk 0:00:28]} 49. Rc8+ {[%clk 0:01:46]}  Kg7 {[%clk 0:00:28]} 50. Re8 {[%clk 0:01:47]}  Bd8 {[%clk 0:00:27]} 51. Nf5+ {[%clk 0:01:38]}  Kh7 {[%clk 0:00:11]} 52. Nd6 {[%clk 0:01:37]} 1-0


[Site "https://www.chess.com"]

[Event "Titled Tuesday Blitz October 26 2021"]
[White "Ambartsumova, Karina"]
[Black "Nakamura, Hikaru"]
[WhiteFideId "4166299"]
[BlackFideId "2016192"]
[WhiteElo "2262"]
[BlackElo "2884"]
[Result "0-1"]
[Round "02"]
[TimeControl "180+1"]
[Date "2021.10.26"]
[WhiteClock "0:00:05"]
[BlackClock "0:01:00"]

1. d4 {[%clk 0:03:00]}  g6 {[%clk 0:02:57]} 2. Nf3 {[%clk 0:02:59]}  Bg7 {[%clk 0:02:57]} 3. g3 {[%clk 0:03:00]}  d6 {[%clk 0:02:58]} 4. Bg2 {[%clk 0:03:00]}  Bd7 {[%clk 0:02:58]} 5. O-O {[%clk 0:02:59]}  Qc8 {[%clk 0:02:59]} 6. Re1 {[%clk 0:02:59]}  Bh3 {[%clk 0:02:58]} 7. Bh1 {[%clk 0:02:59]}  Nc6 {[%clk 0:02:58]} 8. b3 {[%clk 0:02:48]}  h5 {[%clk 0:02:58]} 9. Bg5 {[%clk 0:02:32]}  h4 {[%clk 0:02:55]} 10. Bxh4 {[%clk 0:02:21]}  f6 {[%clk 0:02:31]} 11. Qd3 {[%clk 0:02:10]}  Rh6 {[%clk 0:02:23]} 12. e4 {[%clk 0:02:01]}  g5 {[%clk 0:02:23]} 13. Nxg5 {[%clk 0:01:55]}  fxg5 {[%clk 0:02:13]} 14. Bxg5 {[%clk 0:01:56]}  Rh5 {[%clk 0:02:13]} 15. Be3 {[%clk 0:01:52]}  e5 {[%clk 0:02:13]} 16. c3 {[%clk 0:01:47]}  Nf6 {[%clk 0:02:12]} 17. Nd2 {[%clk 0:01:46]}  Qd7 {[%clk 0:02:12]} 18. b4 {[%clk 0:01:29]}  Ng4 {[%clk 0:02:08]} 19. b5 {[%clk 0:01:21]}  Ne7 {[%clk 0:02:04]} 20. a4 {[%clk 0:01:13]}  Nxh2 {[%clk 0:02:00]} 21. Nf3 {[%clk 0:00:58]}  Nxf3+ {[%clk 0:01:53]} 22. Bxf3 {[%clk 0:00:59]}  Bg4 {[%clk 0:01:53]} 23. Bg2 {[%clk 0:00:59]}  Bh3 {[%clk 0:01:43]} 24. Bf3 {[%clk 0:00:57]}  Rh7 {[%clk 0:01:43]} 25. a5 {[%clk 0:00:55]}  Ng6 {[%clk 0:01:32]} 26. Bg5 {[%clk 0:00:48]}  Kf8 {[%clk 0:01:29]} 27. a6 {[%clk 0:00:39]}  b6 {[%clk 0:01:28]} 28. Qc4 {[%clk 0:00:27]}  Re8 {[%clk 0:01:28]} 29. Rad1 {[%clk 0:00:24]}  Be6 {[%clk 0:01:27]} 30. Qe2 {[%clk 0:00:23]}  Kg8 {[%clk 0:01:21]} 31. Bh5 {[%clk 0:00:23]}  Rxh5 {[%clk 0:01:04]} 32. Qxh5 {[%clk 0:00:22]}  Bg4 {[%clk 0:01:05]} 33. Qxg6 {[%clk 0:00:22]}  Re6 {[%clk 0:01:05]} 34. Bf6 {[%clk 0:00:13]}  Rxf6 {[%clk 0:01:04]} 35. Qg5 {[%clk 0:00:14]}  Bf3 {[%clk 0:01:03]} 36. dxe5 {[%clk 0:00:08]}  Qh3 {[%clk 0:01:01]} 37. exf6 {[%clk 0:00:05]}  Qg2# {[%clk 0:01:00]} 0-1


[Site "https://www.chess.com"]